bitfinex-derivatives/quotes_SOLF0:USTF0_20250518
["timestamp","ask_amount","ask_price","bid_price","bid_amount"]
[1747532890965,61.4,166.26,166.25,6.0125]
[1747532891766,61.4,166.26,166.24,6.0127]
[1747532892170,580.44,166.3,166.19,61.28]
[1747532892466,6.0115,166.28,166.25,6.0122]
[1747532894265,67.3311,166.29,166.25,6.0122]
[1747532894968,6.0118,166.27,166.19,61.28]
[1747532896458,6.0118,166.27,166.24,6.0128]
[1747532898168,61.32,166.29,166.19,61.28]
[1747532898672,61.32,166.29,166.2,5.33429238]
[1747532898972,61.0,166.3,166.2,5.33429238]
[1747532899270,122.12,166.3,166.21,1.9283]
[1747532899459,122.12,166.3,166.22,61.24]
[1747532899966,122.12,166.3,166.27,6.0114]
[1747532900573,128.1308,166.3,166.27,6.0114]
[1747532904582,128.1308,166.3,166.28,6.0114]
[1747532904779,61.04,166.33,166.24,61.04]
[1747532904974,61.24,166.34,166.25,3.8837]
[1747532905175,61.24,166.34,166.31,6.0101]
[1747532905476,7.42273377,166.37,166.3,61.24]
[1747532905678,7.42273377,166.37,166.34,6.009]
[1747532905877,7.42273377,166.37,166.3,61.24]
[1747532906074,7.42273377,166.37,166.3,63.2723]
[1747532906463,7.42273377,166.37,166.36,6.0085]
[1747532906776,11.13904598,166.4,166.35,66.55429238]
[1747532906979,11.13904598,166.4,166.39,6.0074]
[1747532907681,67.1054,166.45,166.41,6.0066]
[1747532908181,6.0057,166.44,166.4,6.0069]
[1747532908367,6.0057,166.44,166.36,61.22]
[1747532909181,67.1053,166.45,166.41,6.0066]
[1747532909575,61.1,166.45,166.36,61.22]
[1747532910585,6.0057,166.44,166.36,61.22]
[1747532910980,61.1,166.45,166.36,61.22]
[1747532911375,6.006,166.43,166.4,6.007]
[1747532912580,6.0063,166.42,166.39,6.0073]
[1747532912783,61.1,166.45,166.39,6.0073]
[1747532913482,6.0061,166.43,166.39,6.0073]
[1747532914081,6.0061,166.43,166.4,6.007]
[1747532914783,6.0061,166.43,166.39,6.0073]
[1747532914985,6.0063,166.42,166.36,63.2804]
[1747532915386,6.0063,166.42,166.38,6.0075]
[1747532915587,6.0063,166.42,166.36,63.2804]
[1747532915781,6.0068,166.41,166.36,63.2804]
[1747532915985,61.1,166.45,166.36,69.2886]
[1747532916380,61.1,166.45,166.36,63.2804]
[1747532916685,61.1,166.45,166.36,61.22]
[1747532917389,6.0076,166.39,166.36,61.22]
[1747532918489,6.0072,166.4,166.36,67.2284]
[1747532920190,6.0072,166.4,166.37,6.0081]
[1747532920391,66.9467,166.41,166.36,61.22]
[1747532921492,66.9467,166.41,166.38,6.0075]
[1747532922493,60.84,166.44,166.36,122.06]
[1747532922689,60.84,166.44,166.37,2.0378]
[1747532923793,66.8456,166.44,166.41,6.0064]
[1747532924093,60.84,166.44,166.37,2.0378]
[1747532924598,6.0053,166.45,166.37,2.0378]
[1747532925503,6.0053,166.45,166.41,6.0064]
[1747532926399,60.8,166.46,166.37,2.0378]
[1747532927309,6.0057,166.44,166.4,6.007]
[1747532928411,6.006,166.43,166.4,6.007]
[1747532930216,6.0057,166.44,166.4,6.007]
[1747532931008,6.0052,166.45,166.37,2.0378]
[1747532931204,60.8,166.46,166.37,2.0378]
[1747532931403,61.18,166.48,166.37,2.0378]
[1747532931604,6.005,166.46,166.42,6.0061]
[1747532932310,6.0047,166.47,166.4,60.78]
[1747532932505,66.7247,166.47,166.4,60.78]
[1747532932909,66.7247,166.47,166.43,6.0058]
[1747532933513,6.0047,166.47,166.43,6.0058]
[1747532934406,127.8642,166.48,166.4,60.78]
[1747532934608,519.68,166.54,166.41,5.33429238]
[1747532934813,60.78,166.52,166.41,5.33429238]
[1747532935417,6.0037,166.5,166.46,6.0047]
[1747532936011,6.0038,166.49,166.46,6.0047]
[1747532938116,60.62,166.51,166.45,6.0052]
[1747532938417,60.78,166.52,166.44,60.78]
[1747532938716,60.6,166.51,166.44,60.78]
[1747532938919,6.0037,166.5,166.46,6.0046]
[1747532939115,6.0037,166.5,166.44,60.78]
[1747532939515,6.0037,166.5,166.46,6.0047]
[1747532941117,60.58,166.51,166.44,60.78]
[1747532941519,60.58,166.51,166.44,66.7855]
[1747532942020,6.0045,166.48,166.44,66.7855]
[1747532942324,6.0045,166.48,166.45,6.0052]
[1747532944718,60.58,166.51,166.46,6.0049]
[1747532944907,60.78,166.52,166.44,60.78]
[1747532945113,60.48,166.51,166.44,60.78]
[1747532945315,6.0036,166.5,166.47,6.0044]
[1747532945612,6.0036,166.5,166.44,60.78]
[1747532946008,6.0036,166.5,166.45,3.86]
[1747532946212,6.0032,166.51,166.45,3.86]
[1747532946423,60.46,166.52,166.47,6.0043]
[1747532946714,60.76,166.55,166.45,3.86]
[1747532946914,60.76,166.58,166.47,5.33429238]
[1747532947109,60.46,166.57,166.48,121.22]
[1747532947309,6.0016,166.56,166.53,6.0022]
[1747532947509,60.46,166.57,166.48,121.22]
[1747532947715,11.06107371,166.61,166.53,5.33429238]
[1747532947915,13.37700322,166.59,166.55,6.0014]
[1747532949314,7.37670322,166.59,166.54,60.76]
[1747532949521,67.85670322,166.59,166.54,60.76]
[1747532949715,6.0012,166.57,166.54,60.76]
[1747532950623,6.0012,166.57,166.54,66.762]
[1747532951333,60.48,166.59,166.53,1.8745]
[1747532951927,6.0015,166.56,166.53,1.8745]
[1747532952927,6.0019,166.55,166.51,66.743]
[1747532953829,6.0021,166.54,166.51,66.743]
[1747532954526,6.0016,166.56,166.52,6.0027]
[1747532954721,60.48,166.59,166.52,6.0027]
[1747532954921,60.48,166.59,166.51,60.74]
[1747532955230,6.0014,166.56,166.53,6.0023]
[1747532955433,6.0014,166.56,166.51,60.74]
[1747532955730,60.48,166.59,166.52,6.0026]
[1747532956630,6.0018,166.55,166.52,6.0026]
[1747532958030,6.0014,166.56,166.53,6.0024]
[1747532958225,60.48,166.59,166.51,60.74]
[1747532958630,6.0012,166.57,166.53,6.002]
[1747532958835,60.76,166.62,166.51,60.74]
[1747532959027,60.32,166.61,166.51,60.74]
[1747532959219,6.0005,166.59,166.55,6.0014]
[1747532959419,60.32,166.61,166.55,6.0014]
[1747532959623,6.0006,166.59,166.55,6.0014]
[1747532960122,6.0007,166.58,166.55,6.0014]
[1747532960324,60.32,166.61,166.52,1.8634]
[1747532961031,60.32,166.61,166.53,6.0022]
[1747532962439,6.0013,166.56,166.53,6.0022]
[1747532965539,6.0011,166.57,166.54,6.002]
[1747532967035,6.0013,166.56,166.53,6.0024]
[1747532967437,6.0013,166.56,166.52,1.8634]
[1747532968232,6.0013,166.56,166.53,6.0023]
[1747532970941,60.22,166.59,166.52,1.8634]
[1747532971444,6.0006,166.58,166.52,1.8634]
[1747532971635,60.22,166.59,166.52,1.8634]
[1747532972233,6.0006,166.58,166.55,6.0015]
[1747532974246,60.22,166.59,166.56,6.0012]
[1747532974247,66.2203,166.59,166.56,6.0012]
[1747532974437,60.22,166.59,166.56,6.0012]
[1747532974636,60.22,166.59,166.52,1.8634]
[1747532974836,6.0006,166.58,166.55,6.0014]
[1747532976643,6.0006,166.58,166.56,6.0013]
[1747532978246,6.0006,166.58,166.55,6.0014]
[1747532979245,60.06,166.6,166.51,60.74]
[1747532980147,6.0019,166.55,166.52,6.0025]
[1747532983047,6.002,166.54,166.52,6.0025]
[1747532983950,6.002,166.54,166.51,66.743]
[1747532984553,6.0024,166.53,166.51,6.003]
[1747532985652,6.0021,166.54,166.51,6.003]
[1747532986151,60.06,166.6,166.5,66.3633]
[1747532986355,6.0026,166.53,166.5,66.3633]
[1747532987553,6.0026,166.53,166.51,6.003]
[1747532988154,59.86,166.56,166.5,60.36]
[1747532988453,59.86,166.56,166.47,5.33429238]
[1747532988454,59.86,166.56,166.47,59.84]
[1747532988647,6.0029,166.52,166.49,6.0037]
[1747532989053,59.86,166.56,166.49,6.0037]
[1747532989248,6.0031,166.51,166.48,6.004]
[1747532993461,6.0036,166.5,166.47,65.8444]
[1747532993763,59.8,166.51,166.47,65.8444]
[1747532993950,59.8,166.51,166.47,6.0044]
[1747532994150,6.0039,166.49,166.46,6.0048]
[1747532995066,6.0036,166.5,166.47,6.0045]
[1747532995464,59.8,166.51,166.45,3.8821]
[1747532995763,65.8032,166.51,166.48,6.0039]
[1747532996172,6.0035,166.5,166.47,6.0044]
[1747532999363,59.86,166.54,166.45,3.8821]
[1747532999567,59.74,166.53,166.45,3.8821]
[1747532999870,65.7425,166.53,166.5,6.0031]
[1747533000770,59.74,166.53,166.45,3.8821]
[1747533001170,59.74,166.53,166.45,7.9859]
[1747533001562,59.74,166.53,166.45,6.005]
[1747533001761,6.0044,166.48,166.45,6.005]
[1747533002969,59.78,166.49,166.43,5.56047817]
[1747533003566,6.0052,166.46,166.43,5.56047817]
[1747533004267,6.0052,166.46,166.41,142.46961746]
[1747533004477,6.0053,166.45,166.41,135.05564656]
[1747533004972,59.78,166.49,166.41,135.05564656]
[1747533005363,6.0051,166.46,166.43,6.0059]
[1747533005775,59.78,166.49,166.41,135.05564656]
[1747533005974,59.78,166.49,166.41,59.86]
[1747533006472,59.78,166.49,166.41,6.0066]
[1747533008075,6.0055,166.45,166.41,6.0066]
[1747533008376,59.84,166.48,166.4,4.0974]
[1747533010375,65.8443,166.48,166.45,6.005]
[1747533010577,59.82,166.51,166.42,119.7]
[1747533010770,6.0035,166.5,166.47,6.0043]
[1747533011076,59.82,166.51,166.42,121.7447]
[1747533011471,59.82,166.51,166.47,6.0043]
[1747533011875,6.0037,166.5,166.47,6.0043]
[1747533013475,59.82,166.51,166.42,121.7447]
[1747533014579,6.0044,166.48,166.45,6.0051]
[1747533014878,59.82,166.51,166.42,121.7447]
[1747533015477,59.8,166.5,166.42,121.7447]
[1747533016083,59.8,166.5,166.48,6.004]
[1747533016892,59.8,166.5,166.47,6.0044]
[1747533017188,65.8035,166.5,166.47,6.0044]
[1747533017688,59.8,166.5,166.48,6.004]
[1747533017888,5.33429238,166.56,166.42,121.7447]
[1747533018091,119.56,166.55,166.42,121.7447]
[1747533018291,119.56,166.55,166.49,6.0038]
[1747533018791,6.003,166.52,166.49,6.0038]
[1747533018988,59.78,166.51,166.49,6.0038]
[1747533019200,59.78,166.51,166.48,6.004]
[1747533019489,65.7832,166.51,166.48,6.004]
[1747533020596,6.0035,166.5,166.47,6.0043]
[1747533022398,6.0039,166.49,166.46,6.0048]
[1747533026392,119.56,166.51,166.42,121.7447]
[1747533026797,6.0035,166.5,166.47,6.0043]
[1747533028504,125.5632,166.51,166.48,6.0041]
[1747533031507,119.56,166.51,166.49,6.0038]
[1747533032308,125.5631,166.51,166.48,6.004]
[1747533042017,125.5631,166.51,166.42,121.7447]
[1747533042018,119.56,166.51,166.42,61.9247]
[1747533042514,6.0049,166.46,166.43,6.0058]
[1747533043307,65.5047,166.47,166.44,6.0056]
[1747533043509,65.5047,166.47,166.41,3.4027893]
[1747533043510,59.5,166.47,166.43,3.4027893]
[1747533044119,59.5,166.47,166.44,6.0054]
[1747533045416,65.5046,166.47,166.44,6.0054]
[1747533045712,59.5,166.47,166.45,6.0052]
[1747533048020,59.5,166.47,166.46,6.0049]
[1747533051423,59.5,166.47,166.45,6.0051]
[1747533052717,59.5,166.47,166.46,6.0049]
[1747533053130,59.5,166.47,166.4,4.0974]
[1747533053131,67.15670322,166.51,166.41,5.31586699]
[1747533053419,59.52,166.5,166.41,5.31586699]
[1747533053619,59.52,166.5,166.48,6.0042]
[1747533053918,7.37670322,166.51,166.47,5.31586699]
[1747533054121,4.27830322,166.51,166.5,6.0035]
[1747533054419,11.06107371,166.54,166.48,65.3413]
[1747533054615,59.52,166.55,166.48,65.3413]
[1747533054816,59.52,166.55,166.53,6.0021]
[1747533061030,59.52,166.55,166.54,6.002]
[1747533061224,6.0007,166.58,166.48,65.3413]
[1747533061431,59.5,166.57,166.48,65.3413]
[1747533061736,59.5,166.57,166.55,6.0014]
[1747533062529,59.5,166.57,166.54,6.0019]
[1747533063225,6.0007,166.58,166.54,6.0019]
[1747533063423,59.5,166.57,166.54,6.0019]
[1747533064431,59.5,166.57,166.55,6.0016]
[1747533064631,59.5,166.58,166.48,65.3413]
[1747533064831,59.5,166.59,166.5,5.31586699]
[1747533065031,119.0,166.59,166.57,6.0006]
[1747533065223,59.5,166.59,166.57,6.0006]
[1747533065423,59.5,166.59,166.53,59.48]
[1747533065929,59.5,166.59,166.54,3.9467]
[1747533066634,65.5002,166.59,166.56,6.0011]
[1747533067328,6.0002,166.59,166.56,6.0011]
[1747533069035,65.5,166.6,166.56,6.0011]
[1747533069239,59.5,166.6,166.57,6.0009]
[1747533069536,59.48,166.62,166.54,3.9467]
[1747533069740,59.48,166.61,166.54,3.9467]
[1747533069931,59.48,166.63,166.54,65.4637]
[1747533070332,124.9583,166.65,166.54,65.4637]
[1747533071335,124.9583,166.65,166.61,5.9992]
[1747533071535,124.9583,166.65,166.58,59.46]
[1747533071839,124.9583,166.65,166.6,5.9998]
[1747533072234,5.9985,166.64,166.58,59.46]
[1747533072927,118.96,166.65,166.58,59.46]
[1747533073132,118.96,166.65,166.58,65.4605]
[1747533073432,5.9996,166.61,166.58,65.4605]
[1747533073637,5.9996,166.61,166.58,6.0005]
[1747533074545,59.46,166.61,166.55,59.46]
[1747533075345,6.0002,166.6,166.56,6.0011]
[1747533076039,59.46,166.61,166.54,3.9467]
[1747533076244,59.46,166.6,166.51,59.46]
[1747533076755,6.0012,166.57,166.53,6.0021]
[1747533076945,65.4612,166.57,166.53,6.0021]
[1747533078248,6.0015,166.56,166.52,6.0026]
[1747533078550,59.46,166.56,166.48,5.8369]
[1747533078750,59.46,166.56,166.48,1.9166]
[1747533079139,59.46,166.56,166.46,59.46]
[1747533079645,63.3537,166.56,166.46,59.46]
[1747533080349,6.0024,166.53,166.48,6.0039]
[1747533080541,59.48,166.52,166.48,6.0039]
[1747533080949,65.483,166.52,166.48,6.0039]
[1747533081444,59.48,166.52,166.46,59.46]
[1747533081750,6.0035,166.5,166.46,65.4647]
[1747533082243,6.0032,166.51,166.47,6.0045]
[1747533082549,59.48,166.52,166.46,59.46]
[1747533082747,65.4827,166.52,166.48,6.004]
[1747533083147,59.48,166.52,166.46,59.46]
[1747533084847,65.4828,166.52,166.48,6.0039]
[1747533086550,65.4828,166.52,166.49,6.0038]
[1747533086848,6.0032,166.51,166.46,59.46]
[1747533087049,118.96,166.52,166.44,1.8802]
[1747533088351,6.0035,166.5,166.45,6.0049]
[1747533088950,6.0035,166.5,166.46,6.0047]
[1747533089652,6.0032,166.51,166.46,6.0047]
[1747533091850,6.0032,166.51,166.47,6.0044]
[1747533092057,118.96,166.52,166.44,1.8802]
[1747533092842,118.96,166.52,166.49,6.0035]
[1747533093248,124.9628,166.52,166.48,6.004]
[1747533093449,118.96,166.52,166.44,1.8802]
[1747533093757,6.0032,166.51,166.47,6.0043]
[1747533094653,118.96,166.52,166.44,1.8802]
[1747533095063,118.96,166.52,166.49,6.0035]
[1747533095858,118.96,166.52,166.44,1.8802]
[1747533095859,118.96,166.52,166.48,6.0042]
[1747533096059,118.96,166.52,166.44,1.8802]
[1747533096259,124.9629,166.52,166.48,6.0039]
[1747533097261,124.9629,166.52,166.49,6.0038]
[1747533097764,65.4829,166.52,166.49,6.0038]
[1747533097966,124.9629,166.52,166.49,6.0038]
[1747533098362,118.96,166.52,166.49,6.0038]
[1747533100569,118.96,166.52,166.5,6.0032]
[1747533100774,6.0021,166.54,166.47,59.48]
[1747533100775,59.48,166.54,166.47,59.48]
[1747533101169,524.8806,166.58,166.47,64.79586699]
[1747533101367,59.48,166.57,166.47,64.79586699]
[1747533101568,59.48,166.59,166.47,64.79586699]
[1747533101763,59.48,166.57,166.54,6.0017]
[1747533101963,59.48,166.59,166.47,5.31586699]
[1747533102169,59.48,166.59,166.5,5.31586699]
[1747533102468,5.9996,166.61,166.51,5.8829]
[1747533102668,59.48,166.6,166.52,59.48]
[1747533103075,65.4799,166.6,166.52,59.48]
[1747533103768,65.4799,166.6,166.57,6.0007]
[1747533104082,66.90724972,166.62,166.52,59.48]
[1747533104277,7.42724972,166.62,166.53,64.79586699]
[1747533104780,7.42724972,166.62,166.61,5.9995]
[1747533106580,7.42724972,166.62,166.6,5.9997]
[1747533107079,76.61947458,166.64,166.6,5.9997]
[1747533107280,65.4786,166.64,166.6,5.9997]
[1747533107580,5.9988,166.63,166.6,5.9997]
[1747533108079,59.48,166.64,166.6,5.9997]
[1747533108478,59.46,166.63,166.6,5.9997]
[1747533109979,59.46,166.63,166.61,5.9995]
[1747533110781,59.48,166.65,166.61,5.9995]
[1747533111080,59.46,166.64,166.61,5.9995]
[1747533111684,65.4586,166.64,166.6,5.9998]
[1747533112977,5.9986,166.64,166.6,5.9998]
[1747533113182,65.4586,166.64,166.6,5.9998]
[1747533117289,5.9988,166.63,166.6,5.9998]
[1747533117481,59.46,166.64,166.6,5.9998]
[1747533117682,65.4587,166.64,166.6,5.9998]
[1747533119287,7.42724972,166.68,166.63,5.9987]
[1747533119590,7.42724972,166.68,166.57,59.48]
[1747533119591,59.44,166.67,166.58,3.8783]
[1747533119778,7.42724972,166.69,166.58,5.8416]
[1747533119979,5.9976,166.67,166.58,5.8416]
[1747533120388,5.9971,166.68,166.64,5.9981]
[1747533120586,59.44,166.67,166.58,5.8416]
[1747533121184,59.44,166.67,166.64,5.9981]
[1747533121384,65.4374,166.67,166.64,5.9981]
[1747533121690,5.9974,166.67,166.64,5.9981]
[1747533121987,66.86724972,166.69,166.61,59.44]
[1747533122189,126.30724972,166.69,166.61,59.44]
[1747533122387,66.86724972,166.69,166.61,118.88]
[1747533122882,66.86724972,166.69,166.66,5.9974]
[1747533123599,66.86724972,166.69,166.67,5.9973]
[1747533124293,59.44,166.69,166.67,5.9973]
[1747533125790,59.44,166.72,166.65,59.44]
[1747533125986,118.88,166.72,166.65,59.44]
[1747533126302,59.44,166.72,166.66,1.8945]
[1747533127391,59.44,166.72,166.69,5.9963]
[1747533127696,59.44,166.72,166.66,1.8945]
[1747533128483,578.1,166.75,166.66,1.8945]
[1747533128688,65.4151,166.74,166.7,5.9961]
[1747533128897,65.4151,166.74,166.66,1.8945]
[1747533129391,5.9951,166.74,166.71,5.9956]
[1747533129596,59.42,166.74,166.66,3.8]
[1747533131598,59.42,166.74,166.72,5.9955]
[1747533132399,59.42,166.74,166.73,5.9952]
[1747533132601,59.42,166.78,166.69,59.42]
[1747533132897,59.42,166.77,166.69,59.42]
[1747533133498,5.9939,166.77,166.74,5.9946]
[1747533133895,65.4139,166.77,166.74,5.9946]
[1747533135000,5.9941,166.76,166.73,5.9951]
[1747533139505,65.4139,166.77,166.74,5.9947]
[1747533139702,59.42,166.77,166.69,59.42]
[1747533140005,7.42724972,166.81,166.8,5.9927]
[1747533140807,126.22724972,166.83,166.81,5.9921]
[1747533141105,66.82724972,166.83,166.81,5.9921]
[1747533141697,59.4,166.83,166.81,5.9921]
[1747533143207,65.3913,166.84,166.81,5.9921]
[1747533144101,59.4,166.84,166.81,5.9921]
[1747533144702,59.4,166.84,166.76,59.4]
[1747533145805,59.4,166.84,166.81,5.992]
[1747533146104,65.3912,166.84,166.81,5.992]
[1747533148012,5.9917,166.83,166.8,5.9926]
[1747533149506,65.3914,166.84,166.8,5.9926]
[1747533151116,65.3914,166.84,166.81,5.9922]
[1747533152413,5.9914,166.84,166.81,5.9922]
[1747533156620,59.36,166.85,166.82,5.9919]
[1747533156621,65.3509,166.85,166.82,5.9919]
[1747533158018,5.9913,166.84,166.81,5.9922]
[1747533158317,59.36,166.85,166.81,5.9922]
[1747533158513,5.9913,166.84,166.81,5.9922]
[1747533164523,59.34,166.85,166.76,59.4]
[1747533165023,5.9922,166.82,166.76,59.4]
[1747533165525,59.34,166.85,166.76,59.4]
[1747533166023,5.9916,166.83,166.76,59.4]
[1747533166213,59.34,166.85,166.76,59.4]
[1747533167129,5.9916,166.83,166.79,5.9927]
[1747533167626,59.34,166.85,166.76,59.4]
[1747533169129,64.65586699,166.85,166.72,1.8932]
[1747533169933,5.9924,166.81,166.72,1.8932]
[1747533170132,59.34,166.8,166.72,1.8932]
[1747533170328,3.8629,166.91,166.79,5.28837927]
[1747533170541,7.42005821,166.92,166.82,5.2873843]
[1747533170834,59.34,166.92,166.83,59.34]
[1747533171532,5.9888,166.91,166.87,5.99]
[1747533171733,5.9888,166.91,166.83,59.34]
[1747533172134,5.9888,166.91,166.86,5.9902]
[1747533172434,65.3284,166.92,166.83,59.34]
[1747533172736,65.3284,166.92,166.87,5.9898]
[1747533173035,5.9888,166.91,166.87,5.9898]
[1747533173528,5.9891,166.9,166.86,5.9904]
[1747533173832,59.34,166.92,166.83,59.34]
[1747533174033,59.34,166.92,166.81,59.32]
[1747533174034,59.32,166.91,166.81,59.32]
[1747533174237,5.99,166.88,166.83,5.9913]
[1747533174428,59.34,166.87,166.83,5.9913]
[1747533175238,59.34,166.87,166.84,5.9912]
[1747533176542,5.9895,166.89,166.85,5.9907]
[1747533176740,65.3295,166.89,166.85,5.9907]
[1747533178142,5.9898,166.88,166.84,5.9911]
[1747533178441,59.34,166.89,166.81,59.32]
[1747533178634,5.9902,166.87,166.83,5.9914]
[1747533180345,5.9902,166.87,166.84,5.9912]
[1747533180544,5.9899,166.88,166.84,5.9912]
[1747533180745,59.34,166.89,166.84,5.9912]
[1747533180945,59.34,166.89,166.83,5.9915]
[1747533181247,5.9906,166.86,166.81,59.32]
[1747533181548,5.9906,166.86,166.83,5.9916]
[1747533182346,5.9902,166.87,166.83,5.9916]
[1747533182546,59.34,166.89,166.81,59.32]
[1747533183047,5.9907,166.86,166.82,5.9917]
[1747533186049,5.9907,166.86,166.83,5.9915]
[1747533186252,59.34,166.89,166.81,59.32]
[1747533186445,59.32,166.89,166.81,59.32]
[1747533186651,7.42005821,166.9,166.81,59.32]
[1747533186951,66.74005821,166.9,166.81,59.32]
[1747533187252,5.9895,166.89,166.81,59.32]
[1747533187447,66.74005821,166.9,166.81,59.32]
[1747533187949,5.99,166.88,166.84,5.991]
[1747533188150,66.74005821,166.9,166.84,5.991]
[1747533188451,5.9896,166.89,166.85,5.9906]
[1747533189759,5.9898,166.88,166.85,5.9906]
[1747533191057,5.9902,166.87,166.84,5.9912]
[1747533191751,5.9899,166.88,166.84,5.9912]
[1747533192455,5.9902,166.87,166.84,5.9912]
[1747533192658,59.32,166.9,166.84,5.9912]
[1747533193548,5.9899,166.88,166.84,5.9912]
[1747533193858,5.9899,166.88,166.85,5.9908]
[1747533195560,59.32,166.9,166.83,5.9913]
[1747533196058,5.9904,166.87,166.83,5.9913]
[1747533196258,59.32,166.9,166.82,5.9918]
[1747533196661,5.9907,166.86,166.82,5.9918]
[1747533197454,5.9909,166.85,166.82,5.9918]
[1747533197657,5.9909,166.85,166.81,5.9922]
[1747533197850,59.32,166.86,166.8,1.9311]
[1747533198351,65.3107,166.86,166.82,5.9917]
[1747533200160,5.9909,166.85,166.82,5.9917]
[1747533201959,5.9909,166.85,166.81,5.9922]
[1747533203061,5.9909,166.85,166.82,5.9919]
[1747533212270,59.32,166.86,166.83,5.9916]
[1747533213268,65.3108,166.86,166.82,5.9918]
[1747533213467,59.32,166.86,166.82,5.9918]
[1747533214567,5.9909,166.85,166.82,5.9918]
[1747533216171,65.3106,166.86,166.82,5.9918]
[1747533217068,5.9909,166.85,166.82,5.9918]
[1747533217466,65.3106,166.86,166.82,5.9918]
[1747533217767,59.32,166.86,166.82,5.9918]
[1747533218569,5.9909,166.85,166.82,5.9918]
[1747533221567,5.9909,166.85,166.81,5.9922]
[1747533222462,5.9909,166.85,166.82,5.9919]
[1747533226474,5.9909,166.85,166.81,5.9921]
[1747533226674,5.9909,166.85,166.8,1.9311]
[1747533227178,65.3105,166.86,166.8,1.9311]
[1747533227367,59.32,166.86,166.8,1.9311]
[1747533228074,5.9909,166.85,166.82,5.9917]
[1747533228776,65.3106,166.86,166.82,5.9917]
[1747533229276,65.3106,166.86,166.83,5.9916]
[1747533230674,5.9909,166.85,166.82,5.9919]
[1747533232476,65.3107,166.86,166.82,5.9919]
[1747533234177,59.32,166.86,166.8,1.9311]
[1747533234582,59.32,166.86,166.8,5.31721426]
[1747533234871,59.32,166.86,166.83,5.9914]
[1747533235683,65.3105,166.86,166.83,5.9914]
[1747533238280,59.32,166.86,166.8,5.31721426]
[1747533239382,65.3105,166.86,166.83,5.9913]
[1747533239989,13.40995821,166.88,166.85,5.9909]
[1747533240283,66.74005821,166.88,166.8,5.31707032]
[1747533241082,5.9903,166.87,166.84,5.991]
[1747533243079,65.3098,166.88,166.84,5.991]
[1747533245687,5.9898,166.88,166.85,5.9908]
[1747533245888,59.3,166.87,166.85,5.9908]
[1747533246990,5.9898,166.88,166.85,5.9908]
[1747533247195,59.3,166.87,166.85,5.9908]
[1747533249489,59.3,166.87,166.84,5.9911]
[1747533251692,65.2902,166.87,166.84,5.9911]
[1747533252396,59.3,166.87,166.8,5.31729295]
[1747533253291,5.9906,166.86,166.83,5.9916]
[1747533258695,59.3,166.87,166.82,5.9919]
[1747533258892,5.9911,166.85,166.8,1.9311]
[1747533259192,3.38619295,166.86,166.8,1.9311]
[1747533259391,9.37679295,166.86,166.82,5.9917]
[1747533260298,65.2903,166.87,166.83,5.9915]
[1747533261499,5.9906,166.86,166.83,5.9915]
[1747533263789,7.42005821,166.88,166.81,3.38619295]